bitfinex/quotes_ETHUSD_20240827
["timestamp","ask_amount","ask_price","bid_price","bid_amount"]
[1724779333758,2.0,2586.5,2585.9,0.07733286]
[1724779334099,2.0,2586.5,2586.0,0.55]
[1724779334389,2.0,2586.2,2585.9,0.55]
[1724779335511,2.0,2586.2,2585.7,0.55]
[1724779335661,2.0,2586.2,2585.7,2.25133]
[1724779337305,0.06549052,2586.1,2585.7,2.25133]
[1724779337809,0.06549052,2586.1,2584.9,17.4016]
[1724779337810,2.0,2585.9,2584.9,17.4016]
[1724779338007,2.0,2585.9,2584.9,10.0316]
[1724779338409,0.06549052,2585.8,2584.9,10.0316]
[1724779338565,0.06549052,2585.8,2585.1,9.7293]
[1724779338910,0.06549052,2585.8,2585.2,0.07735076]
[1724779339068,0.06549052,2585.8,2585.1,9.7293]
[1724779339405,0.06549052,2585.8,2585.2,0.07734604]
[1724779339716,0.06549052,2585.8,2585.3,9.7293]
[1724779340025,2.0,2586.2,2585.5,9.7293]
[1724779340307,2.0,2586.5,2585.6,10.35663335]
[1724779340509,0.06549052,2586.4,2585.7,1.58566334]
[1724779340721,0.06549052,2586.4,2585.8,0.07733059]
[1724779340883,0.06549052,2586.4,2585.9,0.55]
[1724779341067,0.06549052,2586.4,2586.0,0.0773305]
[1724779341263,0.06549052,2586.4,2586.1,10.2793]
[1724779341504,12.02758955,2587.1,2586.2,1.11298263]
[1724779341765,0.06346313,2587.0,2586.3,0.55]
[1724779342006,2.0,2586.8,2586.3,0.55]
[1724779342301,2.0,2586.5,2586.3,0.55]
[1724779342523,2.0,2586.5,2585.8,9.7293]
[1724779342524,12.6654203,2586.4,2585.8,9.7293]
[1724779342719,0.0634783,2586.4,2585.9,1.52293]
[1724779346152,0.0634783,2586.4,2586.0,0.07733052]
[1724779346360,2.0,2586.8,2586.1,0.55]
[1724779346510,0.06359964,2586.7,2586.1,0.55]
[1724779346849,0.06359964,2586.7,2586.0,0.55]
[1724779347149,0.06359964,2586.7,2586.1,9.9282]
[1724779347347,0.06359964,2586.7,2586.2,1.59782]
[1724779347564,0.06359964,2586.7,2586.3,0.07731675]
[1724779347753,11.6228,2587.1,2586.4,0.55]
[1724779347920,0.06156307,2586.6,2586.4,0.55]
[1724779348253,2.0,2587.1,2586.5,0.07731657]
[1724779348434,21.516364,2587.0,2586.6,0.55]
[1724779348751,23.97793465,2587.0,2586.6,0.55]
[1724779348972,0.06157065,2587.0,2586.6,0.55]
[1724779349335,0.06157065,2587.0,2586.4,0.55]
[1724779349525,0.06157065,2587.0,2586.5,0.07731637]
[1724779349873,0.06157065,2587.0,2586.6,0.55]
[1724779350086,2.0,2586.5,2586.2,7.37]
[1724779350378,2.0,2586.5,2585.9,9.6889]
[1724779350670,2.0,2586.8,2586.0,1.70589]
[1724779351045,0.06034206,2586.7,2586.0,1.70589]
[1724779351436,2.0,2586.5,2586.0,1.70589]
[1724779351847,0.05963203,2586.4,2586.1,0.55]
[1724779352368,0.05963203,2586.3,2586.0,0.55]
[1724779352577,2.0,2586.5,2586.0,0.55]
[1724779353376,2.0,2586.5,2585.9,0.55]
[1724779354757,0.53294122,2587.0,2585.8,7.37]
[1724779354758,2.0,2586.2,2585.8,7.37]
[1724779354931,2.0,2586.2,2585.6,21.6237]
[1724779354932,11.4343,2585.9,2585.6,12.42]
[1724779355157,11.4343,2585.9,2585.0,1.00316]
[1724779355158,11.4343,2585.9,2585.2,7.37]
[1724779356012,2.0,2586.2,2585.2,7.37]
[1724779356501,0.05983683,2586.1,2585.2,7.37]
[1724779356687,0.05983683,2586.1,2585.4,9.2037]
[1724779356856,0.05983683,2586.1,2585.5,0.92810431]
[1724779357506,0.05983683,2586.1,2585.6,0.55]
[1724779360978,9.8217,2585.8,2585.2,7.37]
[1724779361511,0.05747822,2585.7,2585.2,7.37]
[1724779361714,0.05747822,2585.7,2585.3,1.64457]
[1724779362009,2.0,2585.9,2585.4,0.07735214]
[1724779362176,0.05747822,2585.6,2585.3,1.64457]
[1724779362502,2.0,2585.9,2585.4,0.55]
[1724779362720,0.05741753,2585.5,2585.4,1.506457]
[1724779363013,2.0,2585.9,2585.4,1.506457]
[1724779363177,0.05741753,2585.5,2585.4,1.506457]
[1724779363383,2.0,2585.9,2585.4,1.506457]
[1724779363722,2.0,2585.9,2585.4,0.55]
[1724779363864,0.05741753,2585.8,2585.4,0.55]
[1724779364279,0.05741753,2585.8,2585.4,0.54860616]
[1724779368308,0.05741753,2585.8,2585.4,0.62595613]
[1724779368511,11.8217,2586.2,2585.4,0.54860616]
[1724779368817,0.05507861,2585.7,2585.5,0.21931762]
[1724779368984,11.8217,2586.2,2585.6,0.55]
[1724779370496,11.8217,2586.2,2585.4,0.55]
[1724779372814,11.8217,2586.2,2585.3,0.55]
[1724779373110,11.8217,2586.2,2585.3,2.24957]
[1724779374007,0.4047742,2586.8,2585.4,12.9997801]
[1724779374148,0.4047742,2586.8,2585.5,10.1575]
[1724779374312,9.2191,2586.9,2585.8,9.2192]
[1724779374513,9.2191,2586.9,2586.0,0.3883]
[1724779374745,9.2191,2586.9,2586.1,0.55]
[1724779375760,0.05140671,2586.8,2586.0,0.55]
[1724779375919,0.05140671,2586.8,2586.0,1.51075]
[1724779378611,9.2125,2586.7,2585.8,9.2192]
[1724779378816,2.05140671,2586.8,2585.3,1.69957]
[1724779378817,2.0,2586.4,2585.4,9.9933]
[1724779379131,9.2125,2586.3,2585.4,7.37]
[1724779379323,9.26480171,2586.3,2585.4,7.37]
[1724779379528,9.26480171,2586.3,2585.5,0.737]
[1724779380310,9.26480171,2586.3,2585.4,7.37]
[1724779380614,9.9104,2585.9,2585.4,7.37]
[1724779381041,0.05194525,2585.8,2585.4,7.37]
[1724779381225,0.05194525,2585.8,2585.1,19.79]
[1724779381426,0.05194525,2585.8,2585.2,1.979]
[1724779381649,2.0,2586.0,2585.4,9.1466]
[1724779381853,12.4641,2586.2,2585.5,0.07734391]
[1724779382052,0.05194525,2585.9,2585.5,0.07734391]
[1724779382246,12.4641,2586.2,2585.5,0.07734391]
[1724779382475,12.4641,2586.2,2585.5,0.9997383]
[1724779382476,0.05194525,2585.8,2585.5,0.9997383]
[1724779382657,12.4641,2586.2,2585.5,0.9997383]
[1724779382866,0.05194525,2585.7,2585.6,0.55]
[1724779383070,12.4641,2586.2,2585.6,1.61963383]
[1724779383587,0.05194525,2586.1,2585.6,1.61963383]
[1724779385152,0.05194525,2586.1,2585.6,0.55]
[1724779385487,9.6985,2586.0,2585.5,0.55]
[1724779385794,11.6985,2586.0,2585.5,0.55]
[1724779385945,0.05194525,2585.9,2585.5,0.55]
[1724779386340,0.05194525,2585.9,2585.1,7.37]
[1724779386590,9.8848,2585.8,2585.1,7.37]
[1724779386854,2.0,2585.7,2585.1,7.37]
[1724779387063,2.0,2585.7,2584.8,19.79]
[1724779387064,30.83042,2585.6,2584.8,19.79]
[1724779387285,9.8848,2585.6,2584.9,1.242]
[1724779387483,0.05139912,2585.5,2584.9,1.31936313]
[1724779387698,0.05139912,2585.5,2585.0,0.86893631]
[1724779388055,0.05139912,2585.5,2584.8,7.37]
[1724779388256,0.05139912,2585.5,2584.9,0.55]
[1724779389138,0.05139912,2585.5,2584.8,7.37]
[1724779389139,2.0,2585.4,2584.8,7.37]
[1724779389728,0.05139912,2585.3,2584.8,7.37]
[1724779389884,0.05139912,2585.3,2584.8,8.107]
[1724779390223,2.0,2585.4,2584.8,8.107]
[1724779390387,2.0,2585.4,2584.9,0.55]
[1724779398618,9.8848,2585.6,2585.0,0.07737018]
[1724779398820,9.8848,2585.6,2585.1,0.55]
[1724779399140,12.1511,2585.5,2585.1,0.55]
[1724779399318,12.20030018,2585.5,2585.1,0.55]
[1724779399526,3.411774,2585.4,2585.1,0.55]
[1724779399711,0.04754399,2585.3,2585.1,0.55]
[1724779399915,0.04754399,2585.3,2585.1,1.72156272]
[1724779400129,9.8848,2585.6,2585.1,1.72156272]
[1724779400370,12.1511,2585.5,2585.1,0.55]
[1724779400538,12.19864399,2585.5,2585.1,0.55]
[1724779400740,15.363047,2585.4,2584.9,0.55]
[1724779401064,9.8848,2585.6,2584.9,1.342]
[1724779401277,0.04754399,2585.3,2584.9,1.342]
[1724779401424,9.8848,2585.6,2584.9,1.342]
[1724779405373,9.8848,2585.6,2584.9,1.41936382]
[1724779405583,9.8848,2585.6,2585.0,0.87893638]
[1724779405782,9.8848,2585.6,2585.1,0.55]
[1724779406939,9.8848,2585.6,2584.9,0.55]
[1724779408549,9.939,2585.2,2584.8,7.37]
[1724779409291,0.04592675,2585.1,2584.8,7.37]
[1724779410493,0.04592675,2585.1,2584.4,29.1909]
[1724779410789,9.939,2585.2,2584.5,3.46909]
[1724779418376,2.0,2585.3,2584.5,3.46909]
[1724779418602,0.04359899,2585.1,2584.6,0.07737221]
[1724779418776,2.0,2585.3,2584.7,0.55]
[1724779418977,0.04359899,2585.0,2584.7,0.55]
[1724779419215,9.4106,2585.4,2584.8,9.14347221]
[1724779419529,9.4106,2585.4,2584.9,0.55]
[1724779419677,9.4106,2585.4,2584.9,0.62736142]
[1724779420910,9.4106,2585.4,2584.9,0.55]
[1724779423309,11.4106,2585.4,2584.9,0.55]
[1724779423513,11.4106,2585.4,2584.7,0.55]
[1724779423707,11.4106,2585.4,2584.7,1.6535099]
[1724779424585,11.4106,2585.4,2584.7,0.55]
[1724779424784,11.4106,2585.4,2584.5,0.55]
[1724779425311,11.4106,2585.4,2584.6,9.9448]
[1724779425473,11.4106,2585.4,2584.7,0.55]
[1724779425674,11.4106,2585.4,2584.8,1.04948]
[1724779425885,11.4106,2585.4,2584.9,0.55]
[1724779427316,0.04217605,2585.3,2584.9,0.55]
[1724779427472,0.04217605,2585.3,2584.8,1.04948]
[1724779430556,0.04217605,2585.3,2584.6,9.9448]
[1724779430711,0.04217605,2585.3,2584.7,0.55]
[1724779431247,11.4106,2585.4,2584.5,0.55]
[1724779431453,3.0,2585.7,2584.5,0.55]
[1724779431454,9.4345,2585.0,2584.5,0.55]
[1724779432123,0.04219123,2584.9,2584.5,0.55]
[1724779433249,0.04219123,2584.9,2584.5,1.342]
[1724779433548,0.04219123,2584.9,2584.5,1.41937995]
[1724779433864,0.04219123,2584.9,2584.5,10.52357995]
[1724779434027,3.0,2585.1,2584.5,10.52357995]
[1724779434262,0.04200902,2584.8,2584.6,1.789358]
[1724779434585,2.0,2585.4,2584.7,0.55]
[1724779434883,2.0,2585.4,2584.8,0.07736609]
[1724779435190,2.0,2585.4,2584.9,0.55]
[1724779437400,9.4345,2585.5,2584.9,9.6542]
[1724779440480,14.51,2585.7,2585.0,0.07736385]
[1724779440711,14.51,2585.7,2585.1,0.55]
[1724779441286,11.51,2585.7,2585.2,0.07736167]
[1724779441471,2.0,2585.7,2585.3,0.55]
[1724779441689,6.31097,2585.6,2585.3,0.55]
[1724779441888,6.31097,2585.6,2585.1,0.55]
[1724779442139,9.0458,2585.5,2585.1,0.55]
[1724779442432,2.0,2585.3,2584.8,0.24167241]
[1724779442605,9.3947,2585.2,2584.6,1.789358]
[1724779442788,2.0,2585.0,2584.3,7.37]
[1724779442988,9.3947,2584.9,2584.3,7.67]
[1724779443231,9.43689123,2584.9,2584.3,7.67]
[1724779443437,2.0,2584.6,2584.3,7.37]
[1724779443636,9.3947,2584.5,2584.3,7.37]
[1724779443845,0.04219123,2584.5,2584.3,7.37]
[1724779444504,9.4721,2584.7,2584.3,7.37]
[1724779444833,2.0,2584.9,2584.4,0.737]
[1724779445396,5.0,2584.9,2584.4,0.81438031]
[1724779445732,2.0,2584.9,2584.5,0.55]
[1724779446234,9.8571,2585.2,2584.5,0.55]
[1724779447899,2.0,2585.3,2584.7,9.9041]
[1724779448130,2.0,2585.3,2584.8,1.54814752]
[1724779448340,2.0,2585.3,2584.8,1.6255179]
[1724779452509,2.0,2585.3,2584.8,1.54814752]
[1724779454623,2.0,2585.3,2584.8,1.62551434]
[1724779457024,2.0,2585.3,2584.8,1.54814752]
[1724779457224,0.04038148,2585.2,2584.8,1.54814752]
[1724779457523,2.0,2585.3,2584.8,1.62551312]
[1724779457723,0.04038148,2585.1,2584.8,1.62551312]
[1724779457923,2.0,2585.3,2584.9,1.15296131]
[1724779458148,2.0,2585.3,2585.0,0.55]
[1724779461239,3.0,2585.5,2585.1,9.6388]
[1724779461418,2.0,2585.6,2585.1,9.6388]
[1724779461621,2.0,2585.9,2585.2,0.62735861]
[1724779461823,2.0,2585.9,2585.2,1.64623861]
[1724779462132,2.0,2585.9,2585.3,9.4107]
[1724779462562,2.0,2585.9,2585.4,0.62735328]
[1724779462742,9.3446,2586.4,2585.6,9.5405]
[1724779462909,2.0,2586.5,2585.7,0.62733646]
[1724779463111,2.0,2586.5,2585.9,9.5405]
[1724779463341,2.0,2586.5,2586.0,1.51178362]
[1724779463757,2.0,2587.1,2586.1,9.61782795]
[1724779463910,2.0,2587.1,2586.2,0.55]
[1724779464237,2.0,2587.1,2586.3,0.07731935]
[1724779464441,2.0,2587.1,2586.4,10.0905]
[1724779464740,2.0,2587.1,2586.5,0.07731657]
[1724779464939,2.0,2587.1,2586.6,0.55]
[1724779467412,2.0,2587.1,2586.7,9.0008]
[1724779467848,2.0,2587.1,2586.6,0.55]
[1724779468062,2.0,2587.1,2586.5,0.55]
[1724779468277,2.0,2587.1,2586.5,1.45008]
[1724779468438,11.3987,2587.1,2586.5,0.55]
[1724779469168,2.0,2587.1,2586.5,0.55]
[1724779469473,2.0,2587.1,2586.6,9.5584]
[1724779469763,2.0,2587.1,2586.7,0.55]
[1724779470629,2.0,2587.1,2586.7,1.63815206]
[1724779471075,2.1239061,2587.5,2586.8,0.07730606]
[1724779471239,2.1239061,2587.5,2586.9,0.55]
[1724779471640,2.1239061,2587.5,2587.0,9.7097]
[1724779471977,2.1239061,2587.5,2587.1,0.55]
[1724779472264,0.03958672,2587.4,2587.1,0.55]
[1724779472639,2.1239061,2587.5,2587.1,0.55]
[1724779473171,2.1239061,2587.5,2587.2,9.7097]
[1724779473172,0.03981441,2587.4,2587.2,9.7097]
[1724779473328,0.039822,2587.4,2587.3,1.66098453]
[1724779473531,2.0,2588.2,2587.3,1.66098453]
[1724779473872,0.03849485,2588.1,2587.3,1.5836998]
[1724779474074,2.0,2588.2,2587.4,1.90516998]
[1724779474366,2.0,2588.2,2587.3,1.5836998]
[1724779474367,2.0,2587.9,2587.3,1.5836998]
[1724779474686,2.0,2587.9,2587.2,17.468]
[1724779474832,2.0,2587.4,2587.2,7.37]
[1724779475171,10.53304,2587.3,2586.8,9.7097]
[1724779475376,0.0371753,2587.3,2586.9,0.97097]
[1724779476071,0.0371753,2587.3,2586.6,7.37]
[1724779476437,2.0,2587.4,2586.7,0.55]
[1724779477134,2.0,2587.4,2586.8,9.7097]
[1724779477335,2.0,2587.7,2586.9,0.62730688]
[1724779477578,2.0,2587.7,2587.0,1.03370069]
[1724779477874,0.0371753,2587.6,2587.1,0.62729913]
[1724779478170,0.0371753,2587.6,2587.2,0.07729839]
[1724779478337,0.0371753,2587.6,2587.3,0.55]
[1724779478537,2.0,2588.0,2587.3,0.55]
[1724779478778,0.0371753,2587.5,2587.4,9.7097]
[1724779479071,2.0,2588.0,2587.4,11.29339916]
[1724779479500,2.0,2588.0,2587.5,0.55]
[1724779479773,0.0374257,2587.9,2587.5,0.55]
[1724779479936,0.0374257,2587.9,2587.6,1.12933992]
[1724779481081,0.0374257,2587.9,2587.7,0.55]
[1724779481753,0.0374257,2587.9,2587.7,0.62728385]
[1724779481981,2.0,2588.3,2587.7,0.62728385]
[1724779482270,0.03823001,2588.2,2587.7,0.62728385]
[1724779484245,0.03823001,2588.2,2587.7,0.55]
[1724779484246,2.03823001,2588.2,2587.7,0.55]
[1724779484880,2.03823001,2588.2,2587.5,0.55]
[1724779485090,2.03823001,2588.2,2587.5,2.31297]
[1724779485653,11.69323001,2588.2,2587.5,2.31297]
[1724779485853,11.69323001,2588.2,2587.5,0.55]
[1724779494099,2.0,2587.9,2587.4,9.7097]
[1724779494343,0.03808877,2587.8,2587.4,9.7097]
[1724779497004,2.0,2588.2,2587.5,0.55]
[1724779497168,0.03814947,2587.7,2587.5,2.31297]
[1724779497363,2.0,2588.2,2587.5,0.55]
[1724779497904,0.03814947,2588.1,2587.5,0.55]
[1724779499080,9.8175,2588.0,2587.5,0.55]
[1724779499279,9.8175,2588.0,2587.3,7.37]
[1724779499280,2.0,2587.9,2587.3,7.37]
[1724779499523,0.03814947,2587.8,2587.3,7.37]
[1724779499816,0.03814947,2587.8,2587.1,9.407]
[1724779500016,0.03814947,2587.8,2587.1,10.45107007]
[1724779500623,0.03814947,2587.8,2587.2,0.55]
[1724779501486,0.03814947,2587.8,2587.3,0.07728888]
[1724779501688,0.03814947,2587.8,2587.4,0.55]
[1724779501883,2.0,2588.2,2587.5,9.407]
[1724779502104,0.03805845,2588.1,2587.5,9.407]
[1724779503385,0.03805845,2588.1,2587.4,0.55]
[1724779503592,0.03805845,2588.1,2587.3,0.55]
[1724779503803,0.03805845,2588.1,2587.3,1.59510701]
[1724779504002,9.8175,2588.0,2587.3,1.59510701]
[1724779504627,0.03805845,2587.9,2587.3,1.59510701]
[1724779505854,2.0,2587.8,2587.3,0.55]
[1724779506213,0.03810396,2587.7,2587.3,0.55]
[1724779506564,2.0,2587.8,2587.3,0.55]
[1724779506725,0.03810396,2587.6,2587.3,0.55]
[1724779506926,2.0,2588.1,2587.4,0.9957]
[1724779507133,0.03799018,2588.0,2587.6,9.5933]
[1724779507848,0.03799018,2588.0,2587.7,0.55]
[1724779508019,0.03799018,2588.0,2587.8,1.01433]
[1724779509450,0.03799018,2588.0,2587.7,0.55]
[1724779510011,0.03799018,2588.0,2587.5,0.55]
[1724779510226,0.03799018,2588.0,2587.7,9.5933]
[1724779510453,0.03799018,2588.0,2587.8,0.07728322]
[1724779510751,2.0,2588.5,2587.8,1.59434154]
[1724779511062,0.0381874,2587.9,2587.8,1.59434154]
[1724779511230,2.0,2588.5,2587.8,1.51705832]
[1724779511433,0.0381874,2587.9,2587.8,1.51705832]
[1724779511617,2.0,2588.5,2587.8,1.51705832]
[1724779511821,2.0,2588.5,2587.9,1.11103583]
[1724779512156,2.0,2588.5,2588.0,0.55]
[1724779512341,10.022421,2588.4,2588.0,0.55]
[1724779513011,10.022421,2588.4,2587.8,0.55]
[1724779513257,2.0,2588.5,2587.8,2.30133]
[1724779514009,2.0,2588.5,2587.8,2.37860679]
[1724779514231,2.0,2588.5,2587.8,2.28860679]
[1724779515138,2.0,2588.5,2587.8,0.46]
[1724779515322,2.0,2588.5,2587.6,7.37]
[1724779516322,2.0,2588.5,2587.7,0.55]
[1724779517356,2.0,2588.5,2587.8,0.07727676]
[1724779517555,2.0,2588.5,2587.9,0.55]
[1724779517712,0.0381874,2588.4,2587.9,0.55]
[1724779520053,0.0381874,2588.4,2587.7,0.62727676]
[1724779520217,0.0381874,2588.4,2587.9,9.1455]
[1724779520418,11.0321,2588.8,2588.0,0.62726898]
[1724779520694,0.0381874,2588.3,2588.1,9.1455]
[1724779520843,2.0,2588.8,2588.2,0.62726508]
[1724779521040,2.0,2588.8,2588.2,1.60454198]
[1724779521274,0.03865761,2588.7,2588.2,1.60454198]
[1724779522367,0.03865761,2588.7,2588.3,9.77356508]
[1724779522573,0.03865761,2588.7,2588.4,0.55]
[1724779522785,2.0,2589.3,2588.5,1.03235651]
[1724779522929,2.0,2589.3,2588.6,0.62725073]
[1724779523274,0.03634818,2589.2,2588.6,0.62725073]
[1724779523471,0.03634818,2589.2,2588.7,9.7624]
[1724779524270,0.03634818,2589.2,2588.8,0.55]
[1724779524575,2.0,2589.3,2588.8,0.55]
[1724779524794,0.03513658,2589.1,2588.8,0.55]
[1724779524952,2.0,2589.3,2588.8,0.55]
[1724779525145,0.03513658,2589.0,2588.8,0.55]
[1724779525331,2.0,2589.3,2588.8,0.55]
[1724779525972,0.03513658,2589.2,2588.8,0.55]
[1724779526333,2.0,2589.3,2588.8,0.55]
[1724779526576,0.03513658,2589.2,2588.8,0.55]
[1724779527371,0.03513658,2589.1,2588.8,0.55]
[1724779527857,2.0,2589.3,2588.8,0.55]
[1724779528026,0.03513658,2589.0,2588.8,0.55]
[1724779528242,14.0276,2589.7,2588.8,0.62725009]
[1724779528484,0.03513658,2588.9,2588.8,0.62725009]
[1724779528792,2.0,2589.6,2588.8,1.6662121]
[1724779528982,2.0,2589.6,2588.8,0.62724709]
[1724779529191,0.03396991,2589.5,2588.8,0.62724709]
[1724779529547,0.03396991,2589.5,2588.9,9.5332]
[1724779529747,2.0,2589.9,2589.1,9.5332]
[1724779529949,0.03467527,2589.8,2589.3,9.5332]
[1724779530258,2.0,2589.8,2589.3,9.5332]
[1724779530458,0.03467527,2589.7,2589.3,9.5332]
[1724779530672,2.0,2589.8,2589.3,9.5332]
[1724779530868,0.1239061,2590.0,2589.3,9.5332]
[1724779531103,0.1239061,2590.0,2589.4,1.58054397]
[1724779531608,0.03463347,2589.9,2589.4,1.58054397]
[1724779531766,0.03463347,2589.9,2589.5,9.5332]
[1724779531965,0.03463347,2589.9,2589.6,0.55]
[1724779532163,0.03463347,2589.9,2589.7,1.00832]
[1724779532511,0.03463347,2589.9,2589.8,0.55]
[1724779533171,2.26163347,2589.9,2589.6,0.55]
[1724779533500,0.03463347,2589.9,2589.6,0.55]
[1724779533703,0.03463347,2589.9,2589.7,0.07722556]
[1724779533859,0.03463347,2589.9,2589.8,0.55]
[1724779534059,0.03463347,2589.9,2589.6,1.653652]
[1724779536510,0.03463347,2589.9,2589.7,0.07721566]
[1724779536708,0.03463347,2589.9,2589.8,0.55]
[1724779538725,0.03463347,2589.9,2589.8,0.62721569]
[1724779539076,0.03463347,2589.9,2589.8,0.55]
[1724779539270,0.03463347,2589.9,2589.7,0.55]
[1724779539495,0.03463347,2589.9,2589.7,1.6136852]
[1724779542187,0.03463347,2589.9,2589.3,7.37]
[1724779544219,0.03463347,2589.9,2589.0,9.9184]
[1724779544435,2.0,2589.7,2588.8,7.37]
[1724779544581,2.0,2589.7,2588.8,9.48896499]
[1724779544781,0.03421637,2589.6,2588.8,9.48896499]
[1724779545531,0.03421637,2589.6,2588.9,0.55]
[1724779548319,0.03421637,2589.6,2589.0,9.44614001]
[1724779548529,2.0,2589.7,2589.1,0.55]
[1724779548738,2.0,2589.7,2589.2,1.07684624]
[1724779548899,2.0,2589.7,2589.3,0.62723225]
[1724779550480,9.3517,2589.8,2589.3,0.62723225]
[1724779550690,0.03389788,2589.7,2589.3,0.62723225]
[1724779550894,9.3517,2589.8,2589.3,0.62723225]
[1724779551096,0.03389788,2589.7,2589.3,0.62723225]
[1724779551339,9.3517,2589.8,2589.3,0.62723225]
[1724779551648,0.03389788,2589.7,2589.3,0.55]
[1724779552011,9.3517,2589.8,2589.3,0.55]
[1724779552213,0.03389788,2589.6,2589.3,0.55]
[1724779552411,9.3517,2589.8,2589.3,0.55]
[1724779552636,0.03389788,2589.5,2589.3,0.55]
[1724779552845,9.3517,2589.8,2589.3,0.55]
[1724779553000,0.03389788,2589.4,2589.3,0.55]
[1724779553202,9.3517,2589.8,2589.3,0.55]
[1724779553402,0.03389788,2589.4,2589.3,0.55]
[1724779553710,9.3517,2589.8,2589.3,0.55]
[1724779554100,0.03389788,2589.7,2589.3,0.55]
[1724779554341,9.3517,2589.8,2589.3,0.55]
[1724779554499,9.3517,2589.8,2589.3,0.6272323]
[1724779554702,0.03389788,2589.7,2589.3,0.6272323]
[1724779554905,9.3517,2589.8,2589.3,0.6272323]
[1724779555205,0.03389788,2589.7,2589.3,0.6272323]
[1724779555546,0.1239061,2590.0,2589.4,9.1209]
[1724779555760,0.1239061,2590.0,2589.5,4.52481323]
[1724779556205,0.1239061,2590.0,2589.5,1.52481323]
[1724779556400,9.3297061,2590.0,2589.5,1.52481323]
[1724779556605,9.3297061,2590.0,2589.5,0.55]
[1724779556805,9.3297061,2590.0,2589.3,0.55]
[1724779557630,11.3297061,2590.0,2589.3,0.55]
[1724779557810,11.3297061,2590.0,2589.4,1.0980214]
[1724779558012,11.3297061,2590.0,2589.3,0.55]
[1724779558202,11.3297061,2590.0,2589.1,0.55]
[1724779559109,11.3297061,2590.0,2588.9,0.55]
[1724779560513,0.1239061,2590.0,2589.0,9.4831]
[1724779560712,0.1239061,2590.0,2589.1,1.55331]
[1724779560713,2.1239061,2590.0,2589.1,1.55331]
[1724779560914,0.1239061,2590.0,2589.2,0.07722901]
[1724779561145,0.1239061,2590.0,2589.3,0.62722519]
[1724779561299,0.1239061,2590.0,2589.4,9.4831]
[1724779561502,0.1239061,2590.0,2589.5,0.62722044]
[1724779562142,0.1239061,2590.0,2589.5,1.01462044]
[1724779562535,0.1239061,2590.0,2589.5,0.62722044]
[1724779562840,0.1239061,2590.0,2589.6,1.36889005]
[1724779563039,0.1239061,2590.0,2589.7,0.62721023]
[1724779563242,0.1239061,2590.0,2589.8,0.07721026]
[1724779563443,0.1239061,2590.0,2589.9,0.55]
[1724779564747,0.1239061,2590.0,2589.9,10.4447]
[1724779564932,0.1239061,2590.0,2589.9,11.53563103]
[1724779566019,0.1239061,2590.0,2589.9,11.92303103]
[1724779567358,0.1239061,2590.0,2589.9,1.64093103]
[1724779567556,0.1239061,2590.0,2589.6,9.6725]
[1724779567856,0.1239061,2590.0,2589.5,3.0]
[1724779568940,0.1239061,2590.0,2589.6,0.55]
[1724779569652,9.3881061,2590.0,2589.5,0.55]
[1724779569811,9.3881061,2590.0,2589.5,1.55599]
[1724779571121,9.3881061,2590.0,2589.5,0.55]
[1724779571455,9.3881061,2590.0,2589.3,0.55]
[1724779577334,9.3881061,2590.0,2589.2,7.37]
[1724779577335,50.00988,2589.9,2589.2,7.37]
[1724779577644,9.9669,2589.8,2589.2,7.37]
[1724779577827,9.9669,2589.8,2589.3,0.737]
[1724779578654,9.9669,2589.8,2589.4,0.55]
[1724779582376,11.4560061,2590.0,2589.4,0.55]
[1724779582532,9.4560061,2590.0,2589.5,0.07722819]
[1724779582874,9.4560061,2590.0,2589.6,0.55]
[1724779583077,11.010763,2589.9,2589.4,0.55]
[1724779583367,9.4560061,2590.0,2589.4,0.55]
[1724779584067,0.1239061,2590.0,2589.4,0.55]
[1724779584238,0.1239061,2590.0,2589.5,0.07722104]
[1724779584604,0.1239061,2590.0,2589.6,0.55]
[1724779584765,0.1239061,2590.0,2589.7,0.07722104]
[1724779584970,0.1239061,2590.0,2589.8,0.55]
[1724779585188,5.207929,2589.9,2589.8,0.55]
[1724779585378,5.207929,2589.9,2589.8,1.6037221]
[1724779586370,0.1239061,2590.0,2589.8,1.6037221]
[1724779587079,9.6582,2589.9,2589.8,1.6037221]
[1724779587283,13.9571,2589.9,2589.3,0.737]
[1724779587480,9.6582,2589.9,2589.3,0.737]
[1724779587802,9.6582,2589.9,2589.4,0.8107]
[1724779588503,9.6582,2589.9,2589.5,0.55]
[1724779589593,0.1239061,2590.0,2589.5,0.6272247]
[1724779589871,0.1239061,2590.0,2589.6,9.131]
[1724779590066,0.1239061,2590.0,2589.7,1.6030424]
[1724779590506,0.1239061,2590.0,2589.7,1.52582247]
[1724779590908,0.1239061,2590.0,2589.8,0.07721032]
[1724779591207,0.1239061,2590.0,2589.9,0.55]
[1724779592425,0.1239061,2590.0,2589.8,0.55]
[1724779593137,0.1239061,2590.0,2589.8,0.62721038]
[1724779593496,0.1239061,2590.0,2589.9,9.37461038]
[1724779593693,11.90960326,2591.3,2590.1,3.9659801]
[1724779593999,11.5055,2591.3,2590.3,13.2633801]
[1724779594336,9.5055,2591.3,2590.4,0.07719028]
[1724779594531,9.5055,2591.3,2590.5,0.9374]
[1724779594697,9.5055,2591.3,2590.6,0.07718148]
[1724779594896,9.5055,2591.3,2590.7,0.55]
[1724779595127,9.5055,2591.3,2590.8,0.0771815]
[1724779595429,9.5055,2591.3,2590.9,0.55]
[1724779595641,8.275054,2591.2,2591.0,0.07718152]